[Event "Early-Titled-Tuesday-Blitz-February-06-2024"]
[Site "Chess.com"]
[Date "2024.02.06"]
[Round "8"]
[White "Hovik_Hayrapetyan"]
[Black "Thunderbolt135"]
[Result "1-0"]
[WhiteElo "2902"]
[BlackElo "2696"]
[TimeControl "180+1"]
[EndTime "9:30:20 PST"]
[Termination "Hovik_Hayrapetyan won by checkmate"]

1. d4 {[%clk 0:03:00.9]} 1... Nf6 {[%clk 0:03:00.1]} 2. c4 {[%clk 0:03:01.2]}
2... e6 {[%clk 0:03:00.6]} 3. Nc3 {[%clk 0:03:01.5]} 3... Bb4 {[%clk 0:03:00.9]}
4. Nf3 {[%clk 0:02:58.6]} 4... b6 {[%clk 0:03:01.2]} 5. Bd2 {[%clk 0:02:52.5]}
5... Bb7 {[%clk 0:03:01.2]} 6. g3 {[%clk 0:02:52.3]} 6... O-O {[%clk 0:02:57.7]}
7. Bg2 {[%clk 0:02:51.6]} 7... a5 {[%clk 0:02:52.8]} 8. O-O {[%clk 0:02:51]}
8... Bxc3 {[%clk 0:02:53.1]} 9. Bxc3 {[%clk 0:02:51.9]} 9... Be4 {[%clk
0:02:53.8]} 10. Re1 {[%clk 0:02:45.6]} 10... d6 {[%clk 0:02:53.8]} 11. Bh3
{[%clk 0:02:44.4]} 11... Nbd7 {[%clk 0:02:51.7]} 12. Nd2 {[%clk 0:02:42.5]}
12... Bb7 {[%clk 0:02:34.8]} 13. e4 {[%clk 0:02:41.4]} 13... Qe7 {[%clk
0:02:23.8]} 14. e5 {[%clk 0:02:34.2]} 14... dxe5 {[%clk 0:02:24.7]} 15. dxe5
{[%clk 0:02:34.4]} 15... Ne8 {[%clk 0:02:25]} 16. Ne4 {[%clk 0:02:23.1]} 16...
Nc5 {[%clk 0:02:22.6]} 17. Bg2 {[%clk 0:01:37.9]} 17... Nxe4 {[%clk 0:01:16.2]}
18. Bxe4 {[%clk 0:01:36.5]} 18... Bxe4 {[%clk 0:01:17.1]} 19. Rxe4 {[%clk
0:01:37.1]} 19... Rd8 {[%clk 0:01:18]} 20. Rd4 {[%clk 0:01:34.1]} 20... Rxd4
{[%clk 0:01:16.6]} 21. Qxd4 {[%clk 0:01:35]} 21... g6 {[%clk 0:01:00.9]} 22. Rd1
{[%clk 0:01:32.7]} 22... Ng7 {[%clk 0:01:01.5]} 23. g4 {[%clk 0:01:13.6]} 23...
Qh4 {[%clk 0:00:56.4]} 24. Kg2 {[%clk 0:01:09.4]} 24... h5 {[%clk 0:00:50.9]}
25. h3 {[%clk 0:01:08.9]} 25... Re8 {[%clk 0:00:14.9]} 26. f3 {[%clk 0:00:50.3]}
26... Qg5 {[%clk 0:00:15.1]} 27. Qd2 {[%clk 0:00:40.1]} 27... Qe7 {[%clk
0:00:12.5]} 28. Qd4 {[%clk 0:00:29.3]} 28... Rf8 {[%clk 0:00:11.9]} 29. Rd3
{[%clk 0:00:26.3]} 29... Qh4 {[%clk 0:00:10.9]} 30. Qf2 {[%clk 0:00:22.1]} 30...
Qg5 {[%clk 0:00:10.5]} 31. Qd2 {[%clk 0:00:19.5]} 31... Qh4 {[%clk 0:00:09.5]}
32. Bd4 {[%clk 0:00:19.3]} 32... Rd8 {[%clk 0:00:07.9]} 33. Bf2 {[%clk
0:00:18.8]} 33... Rxd3 {[%clk 0:00:08.8]} 34. Qxd3 {[%clk 0:00:19.7]} 34... Qe7
{[%clk 0:00:09.7]} 35. Kg3 {[%clk 0:00:15.5]} 35... Qe8 {[%clk 0:00:07.6]} 36.
Be3 {[%clk 0:00:14.6]} 36... Qe7 {[%clk 0:00:05]} 37. b3 {[%clk 0:00:13.4]}
37... Kf8 {[%clk 0:00:04]} 38. h4 {[%clk 0:00:13.4]} 38... Kg8 {[%clk
0:00:04.1]} 39. Bg5 {[%clk 0:00:12.8]} 39... Qe8 {[%clk 0:00:05]} 40. Bf6 {[%clk
0:00:12.5]} 40... Qc6 {[%clk 0:00:04.9]} 41. Qd8+ {[%clk 0:00:11.7]} 41... Ne8
{[%clk 0:00:05]} 42. gxh5 {[%clk 0:00:11.9]} 42... gxh5 {[%clk 0:00:05.9]} 43.
Qd2 {[%clk 0:00:11.2]} 43... Nxf6 {[%clk 0:00:05.3]} 44. exf6 {[%clk 0:00:12.1]}
44... Qd6+ {[%clk 0:00:05]} 45. Qxd6 {[%clk 0:00:12.1]} 45... cxd6 {[%clk
0:00:05.9]} 46. Kf4 {[%clk 0:00:12.6]} 46... Kh7 {[%clk 0:00:06.5]} 47. Kg5
{[%clk 0:00:12.9]} 47... d5 {[%clk 0:00:07]} 48. cxd5 {[%clk 0:00:03.4]} 48...
exd5 {[%clk 0:00:07.9]} 49. Kf5 {[%clk 0:00:03.7]} 49... d4 {[%clk 0:00:06.4]}
50. Ke4 {[%clk 0:00:03.9]} 50... Kg6 {[%clk 0:00:07.3]} 51. Kxd4 {[%clk
0:00:04.5]} 51... Kxf6 {[%clk 0:00:07.8]} 52. Ke4 {[%clk 0:00:03.1]} 52... Ke6
{[%clk 0:00:05.6]} 53. a4 {[%clk 0:00:03]} 53... f6 {[%clk 0:00:02.6]} 54. Kf4
{[%clk 0:00:02.1]} 54... Ke7 {[%clk 0:00:02]} 55. Kf5 {[%clk 0:00:03]} 55... Kf7
{[%clk 0:00:02.5]} 56. f4 {[%clk 0:00:03.7]} 56... Ke7 {[%clk 0:00:01.5]} 57.
Kg6 {[%clk 0:00:04.4]} 57... Ke6 {[%clk 0:00:02.4]} 58. Kxh5 {[%clk 0:00:04.9]}
58... Kf5 {[%clk 0:00:03.3]} 59. Kh6 {[%clk 0:00:05.6]} 59... Kxf4 {[%clk
0:00:04.2]} 60. h5 {[%clk 0:00:06.5]} 60... Kg4 {[%clk 0:00:04.6]} 61. Kg6
{[%clk 0:00:06.8]} 61... f5 {[%clk 0:00:05.2]} 62. h6 {[%clk 0:00:07.7]} 62...
f4 {[%clk 0:00:06.1]} 63. h7 {[%clk 0:00:08.6]} 63... f3 {[%clk 0:00:07]} 64.
h8=Q {[%clk 0:00:09.4]} 64... f2 {[%clk 0:00:07.9]} 65. Qd4+ {[%clk 0:00:09.4]}
65... Kg3 {[%clk 0:00:08.8]} 66. Qe3+ {[%clk 0:00:09]} 66... Kg2 {[%clk
0:00:09]} 67. Qe2 {[%clk 0:00:08.9]} 67... Kg1 {[%clk 0:00:09.5]} 68. Qg4+
{[%clk 0:00:09]} 68... Kh1 {[%clk 0:00:09.3]} 69. Qh3+ {[%clk 0:00:08.8]} 69...
Kg1 {[%clk 0:00:09.8]} 70. Qg3+ {[%clk 0:00:09.2]} 70... Kf1 {[%clk 0:00:10.4]}
71. Kf5 {[%clk 0:00:08.7]} 71... Ke2 {[%clk 0:00:11.3]} 72. Qg2 {[%clk
0:00:08.2]} 72... Ke3 {[%clk 0:00:11.5]} 73. Qe4+ {[%clk 0:00:07.8]} 73... Kd2
{[%clk 0:00:11.5]} 74. Qf3 {[%clk 0:00:08.7]} 74... Ke1 {[%clk 0:00:11.6]} 75.
Qe3+ {[%clk 0:00:09.1]} 75... Kf1 {[%clk 0:00:11.1]} 76. Kg4 {[%clk 0:00:08.9]}
76... Kg2 {[%clk 0:00:12]} 77. Qe2 {[%clk 0:00:09.1]} 77... Kg1 {[%clk
0:00:12.1]} 78. Kg3 {[%clk 0:00:08.5]} 78... f1=Q {[%clk 0:00:08]} 79. Qh2#
{[%clk 0:00:07.9]} 1-0

[Event "Early-Titled-Tuesday-Blitz-February-06-2024"]
[Site "Chess.com"]
[Date "2024.02.06"]
[Round "8"]
[White "Semetey"]
[Black "mbchess97"]
[Result "0-1"]
[WhiteElo "2625"]
[BlackElo "2466"]
[TimeControl "180+1"]
[EndTime "9:30:23 PST"]
[Termination "mbchess97 won by checkmate"]

1. Nf3 {[%clk 0:02:53.1]} 1... Nf6 {[%clk 0:02:58.6]} 2. g3 {[%clk 0:02:54]}
2... e6 {[%clk 0:02:58]} 3. Bg2 {[%clk 0:02:49.4]} 3... d5 {[%clk 0:02:57.6]} 4.
b3 {[%clk 0:02:46.4]} 4... Be7 {[%clk 0:02:53.6]} 5. c4 {[%clk 0:02:46]} 5...
O-O {[%clk 0:02:52.1]} 6. Bb2 {[%clk 0:02:46.2]} 6... a5 {[%clk 0:02:43.2]} 7.
Nc3 {[%clk 0:02:33.3]} 7... Bd7 {[%clk 0:02:28.2]} 8. O-O {[%clk 0:02:16.3]}
8... a4 {[%clk 0:02:23.2]} 9. cxd5 {[%clk 0:02:14.5]} 9... a3 {[%clk 0:02:19.5]}
10. Bc1 {[%clk 0:02:14.6]} 10... exd5 {[%clk 0:02:16.1]} 11. d4 {[%clk
0:02:13.8]} 11... Bb4 {[%clk 0:02:04.5]} 12. Bd2 {[%clk 0:01:57.5]} 12... Nc6
{[%clk 0:02:04.5]} 13. Rc1 {[%clk 0:01:55.6]} 13... Re8 {[%clk 0:02:04.4]} 14.
Bg5 {[%clk 0:01:46.2]} 14... Be6 {[%clk 0:01:49.4]} 15. Ne5 {[%clk 0:01:36]}
15... h6 {[%clk 0:01:21.3]} 16. Bxf6 {[%clk 0:01:21.4]} 16... Qxf6 {[%clk
0:01:17.8]} 17. Nxd5 {[%clk 0:01:04.4]} 17... Bxd5 {[%clk 0:01:12.4]} 18. Bxd5
{[%clk 0:01:05.3]} 18... Nxe5 {[%clk 0:01:09.4]} 19. dxe5 {[%clk 0:01:04.5]}
19... Qxe5 {[%clk 0:01:09.1]} 20. Bxb7 {[%clk 0:01:04.4]} 20... Rad8 {[%clk
0:01:07]} 21. Qc2 {[%clk 0:01:04.3]} 21... Rd2 {[%clk 0:00:43.9]} 22. Qc4 {[%clk
0:01:03.8]} 22... Bd6 {[%clk 0:00:37.4]} 23. Bc6 {[%clk 0:01:00.5]} 23... Re7
{[%clk 0:00:35.9]} 24. Rc2 {[%clk 0:00:37]} 24... Rxc2 {[%clk 0:00:30.8]} 25.
Qxc2 {[%clk 0:00:36.4]} 25... Qxe2 {[%clk 0:00:31]} 26. Qf5 {[%clk 0:00:36]}
26... Qxa2 {[%clk 0:00:26.8]} 27. Qc8+ {[%clk 0:00:35.1]} 27... Kh7 {[%clk
0:00:26.5]} 28. Qf5+ {[%clk 0:00:33.7]} 28... g6 {[%clk 0:00:26.3]} 29. Qf3
{[%clk 0:00:26.7]} 29... Qe2 {[%clk 0:00:24.6]} 30. Qxe2 {[%clk 0:00:19.7]}
30... Rxe2 {[%clk 0:00:24.6]} 31. Bd5 {[%clk 0:00:19.2]} 31... a2 {[%clk
0:00:22.4]} 32. b4 {[%clk 0:00:18.4]} 32... Be5 {[%clk 0:00:22.5]} 33. Bxa2
{[%clk 0:00:17.3]} 33... Rxa2 {[%clk 0:00:23.4]} 34. Re1 {[%clk 0:00:16.4]}
34... Bd6 {[%clk 0:00:22.3]} 35. b5 {[%clk 0:00:15.9]} 35... Rb2 {[%clk
0:00:22.2]} 36. Kg2 {[%clk 0:00:14.4]} 36... Rxb5 {[%clk 0:00:21.6]} 37. Re2
{[%clk 0:00:15]} 37... Kg7 {[%clk 0:00:21.8]} 38. h4 {[%clk 0:00:14.8]} 38... h5
{[%clk 0:00:21.5]} 39. Rc2 {[%clk 0:00:14.6]} 39... Kf6 {[%clk 0:00:21.2]} 40.
Kf3 {[%clk 0:00:14.5]} 40... Rc5 {[%clk 0:00:21.3]} 41. Rd2 {[%clk 0:00:14.2]}
41... Rc3+ {[%clk 0:00:21.4]} 42. Ke4 {[%clk 0:00:14.3]} 42... Be5 {[%clk
0:00:18.5]} 43. Ra2 {[%clk 0:00:12.5]} 43... Rc4+ {[%clk 0:00:18]} 44. Ke3
{[%clk 0:00:11.6]} 44... Bd6 {[%clk 0:00:17.5]} 45. Kd3 {[%clk 0:00:10.5]} 45...
Rb4 {[%clk 0:00:17.2]} 46. Ke3 {[%clk 0:00:10.4]} 46... Rb3+ {[%clk 0:00:17.3]}
47. Ke4 {[%clk 0:00:10.5]} 47... Bc5 {[%clk 0:00:16.8]} 48. Ra6+ {[%clk
0:00:09]} 48... Rb6 {[%clk 0:00:15.9]} 49. Ra2 {[%clk 0:00:09.5]} 49... Re6+
{[%clk 0:00:15.6]} 50. Kf4 {[%clk 0:00:09.7]} 50... Bb6 {[%clk 0:00:15.3]} 51.
Rc2 {[%clk 0:00:09.6]} 51... c5 {[%clk 0:00:15.4]} 52. Kf3 {[%clk 0:00:08.5]}
52... Rc6 {[%clk 0:00:15.1]} 53. Ke4 {[%clk 0:00:08.7]} 53... c4 {[%clk
0:00:14.5]} 54. Kd5 {[%clk 0:00:08.6]} 54... Rc5+ {[%clk 0:00:14.9]} 55. Kd6
{[%clk 0:00:09]} 55... Rc8 {[%clk 0:00:12.6]} 56. f3 {[%clk 0:00:05.8]} 56... c3
{[%clk 0:00:12.5]} 57. Kd5 {[%clk 0:00:05.5]} 57... Ke7 {[%clk 0:00:11.8]} 58.
Re2+ {[%clk 0:00:04.5]} 58... Kd7 {[%clk 0:00:12]} 59. Rc2 {[%clk 0:00:05.2]}
59... Rc5+ {[%clk 0:00:12]} 60. Kd4 {[%clk 0:00:04.9]} 60... Rb5+ {[%clk
0:00:11.3]} 61. Kc4 {[%clk 0:00:04.7]} 61... Rc5+ {[%clk 0:00:11.7]} 62. Kd4
{[%clk 0:00:04.7]} 62... Rc7+ {[%clk 0:00:11.5]} 63. Kd5 {[%clk 0:00:04.2]}
63... f6 {[%clk 0:00:09.4]} 64. g4 {[%clk 0:00:04.2]} 64... hxg4 {[%clk
0:00:09.1]} 65. fxg4 {[%clk 0:00:05.1]} 65... Rc5+ {[%clk 0:00:09.4]} 66. Ke4
{[%clk 0:00:04.8]} 66... Rc4+ {[%clk 0:00:09.1]} 67. Kf3 {[%clk 0:00:03.7]}
67... Bd4 {[%clk 0:00:07.6]} 68. h5 {[%clk 0:00:03.7]} 68... gxh5 {[%clk
0:00:07.5]} 69. gxh5 {[%clk 0:00:04.6]} 69... Ke6 {[%clk 0:00:07.8]} 70. Ke4
{[%clk 0:00:04.8]} 70... Be5+ {[%clk 0:00:07.8]} 71. Kd3 {[%clk 0:00:05.3]}
71... Rc8 {[%clk 0:00:07.6]} 72. Rc1 {[%clk 0:00:03.7]} 72... Kf7 {[%clk
0:00:07.6]} 73. Rh1 {[%clk 0:00:04.3]} 73... Rh8 {[%clk 0:00:07.4]} 74. h6
{[%clk 0:00:04.5]} 74... Kg6 {[%clk 0:00:07.4]} 75. Ke4 {[%clk 0:00:04.9]} 75...
Rxh6 {[%clk 0:00:07.2]} 76. Rg1+ {[%clk 0:00:05.8]} 76... Kf7 {[%clk 0:00:07.5]}
77. Ra1 {[%clk 0:00:05.5]} 77... Rh4+ {[%clk 0:00:07.7]} 78. Kd5 {[%clk
0:00:05.3]} 78... c2 {[%clk 0:00:07.5]} 79. Ra7+ {[%clk 0:00:04.7]} 79... Kg6
{[%clk 0:00:07.4]} 80. Rc7 {[%clk 0:00:04.7]} 80... Rh2 {[%clk 0:00:06.8]} 81.
Rc8 {[%clk 0:00:04.5]} 81... Bf4 {[%clk 0:00:06.8]} 82. Ke4 {[%clk 0:00:02.9]}
82... c1=Q {[%clk 0:00:06.3]} 83. Rg8+ {[%clk 0:00:03.6]} 83... Kf7 {[%clk
0:00:06.1]} 84. Rg4 {[%clk 0:00:03.4]} 84... Qe3+ {[%clk 0:00:05.8]} 85. Kf5
{[%clk 0:00:03.6]} 85... Qe5# {[%clk 0:00:05.9]} 0-1

[Event "Early-Titled-Tuesday-Blitz-February-06-2024"]
[Site "Chess.com"]
[Date "2024.02.06"]
[Round "8"]
[White "KanalSzachowy"]
[Black "GlavkonVVS"]
[Result "0-1"]
[WhiteElo "2383"]
[BlackElo "2625"]
[TimeControl "180+1"]
[EndTime "9:30:35 PST"]
[Termination "GlavkonVVS won by checkmate"]

1. e4 {[%clk 0:03:00.9]} 1... Nf6 {[%clk 0:02:59.7]} 2. e5 {[%clk 0:03:01]} 2...
Nd5 {[%clk 0:03:00.1]} 3. d4 {[%clk 0:03:01.6]} 3... d6 {[%clk 0:03:00.4]} 4.
Bc4 {[%clk 0:03:02.2]} 4... Nb6 {[%clk 0:03:00.3]} 5. Bb3 {[%clk 0:03:01.9]}
5... a5 {[%clk 0:03:00.1]} 6. a4 {[%clk 0:03:01.2]} 6... dxe5 {[%clk 0:03:00]}
7. Qh5 {[%clk 0:03:00.3]} 7... e6 {[%clk 0:02:58.9]} 8. dxe5 {[%clk 0:03:00.1]}
8... Nc6 {[%clk 0:02:58.9]} 9. Nf3 {[%clk 0:03:00.4]} 9... Nd4 {[%clk
0:02:46.5]} 10. Nxd4 {[%clk 0:02:49.6]} 10... Qxd4 {[%clk 0:02:46]} 11. O-O
{[%clk 0:02:50.2]} 11... g6 {[%clk 0:02:46.3]} 12. Qg5 {[%clk 0:02:48.4]} 12...
Be7 {[%clk 0:02:45.8]} 13. Qg3 {[%clk 0:02:47.8]} 13... h5 {[%clk 0:02:43.3]}
14. Nd2 {[%clk 0:02:26.9]} 14... h4 {[%clk 0:02:42.5]} 15. Qh3 {[%clk
0:02:12.6]} 15... Qxe5 {[%clk 0:02:38.9]} 16. Nf3 {[%clk 0:02:12.5]} 16... Qf5
{[%clk 0:02:35.2]} 17. Qxf5 {[%clk 0:02:10.7]} 17... gxf5 {[%clk 0:02:35]} 18.
Bf4 {[%clk 0:02:07.8]} 18... Bd6 {[%clk 0:02:33.6]} 19. Ne5 {[%clk 0:02:05.6]}
19... Nd7 {[%clk 0:02:26.4]} 20. Rfe1 {[%clk 0:01:55.5]} 20... Nxe5 {[%clk
0:02:25.3]} 21. Bxe5 {[%clk 0:01:56.4]} 21... Bxe5 {[%clk 0:02:25.7]} 22. Rxe5
{[%clk 0:01:57.3]} 22... Ke7 {[%clk 0:02:22.8]} 23. Rae1 {[%clk 0:01:54.9]}
23... Kf6 {[%clk 0:02:21.8]} 24. Rc5 {[%clk 0:01:52.8]} 24... c6 {[%clk
0:02:19.7]} 25. f4 {[%clk 0:01:39.9]} 25... Rd8 {[%clk 0:02:13.6]} 26. g3 {[%clk
0:01:40]} 26... Rd4 {[%clk 0:02:00.5]} 27. Ree5 {[%clk 0:01:33.2]} 27... hxg3
{[%clk 0:01:50.9]} 28. hxg3 {[%clk 0:01:32.9]} 28... b5 {[%clk 0:01:23.2]} 29.
Rxc6 {[%clk 0:01:31.5]} 29... bxa4 {[%clk 0:01:13.1]} 30. Bc4 {[%clk 0:01:31.5]}
30... Bb7 {[%clk 0:01:06.7]} 31. Rc7 {[%clk 0:01:32]} 31... Be4 {[%clk
0:01:04.6]} 32. Be2 {[%clk 0:01:29.8]} 32... Rad8 {[%clk 0:00:52.7]} 33. Kf2
{[%clk 0:01:25.9]} 33... R8d7 {[%clk 0:00:50.8]} 34. Rxd7 {[%clk 0:01:16.1]}
34... Rxd7 {[%clk 0:00:50.6]} 35. g4 {[%clk 0:01:17]} 35... Bxc2 {[%clk
0:00:49]} 36. gxf5 {[%clk 0:01:11.3]} 36... Bxf5 {[%clk 0:00:45.6]} 37. Rxa5
{[%clk 0:01:11.7]} 37... Rd4 {[%clk 0:00:40.1]} 38. Ke3 {[%clk 0:01:07.7]} 38...
Re4+ {[%clk 0:00:39.9]} 39. Kf3 {[%clk 0:01:08.3]} 39... Rb4 {[%clk 0:00:39.9]}
40. Rb5 {[%clk 0:01:05.7]} 40... Rxb5 {[%clk 0:00:29.1]} 41. Bxb5 {[%clk
0:01:06.6]} 41... Bc2 {[%clk 0:00:29.6]} 42. Ke2 {[%clk 0:01:05.4]} 42... Kf5
{[%clk 0:00:28.9]} 43. Be8 {[%clk 0:01:02.6]} 43... f6 {[%clk 0:00:28.2]} 44.
Ke3 {[%clk 0:00:59.7]} 44... Bb3 {[%clk 0:00:25.8]} 45. Bd7 {[%clk 0:00:58.1]}
45... Kg6 {[%clk 0:00:23.2]} 46. Be8+ {[%clk 0:00:51.1]} 46... Kg7 {[%clk
0:00:23.1]} 47. Kd4 {[%clk 0:00:51]} 47... Kf8 {[%clk 0:00:23.6]} 48. Bd7 {[%clk
0:00:48.3]} 48... Ke7 {[%clk 0:00:23.9]} 49. Bc6 {[%clk 0:00:44.2]} 49... Kd6
{[%clk 0:00:24.4]} 50. Be8 {[%clk 0:00:42.7]} 50... e5+ {[%clk 0:00:22.6]} 51.
fxe5+ {[%clk 0:00:42.7]} 51... fxe5+ {[%clk 0:00:23.5]} 52. Ke4 {[%clk
0:00:41.1]} 52... Bc2+ {[%clk 0:00:23.4]} 53. Ke3 {[%clk 0:00:38.6]} 53... Kc5
{[%clk 0:00:23.9]} 54. Bh5 {[%clk 0:00:19]} 54... Kb4 {[%clk 0:00:23.3]} 55. Be8
{[%clk 0:00:19.4]} 55... Bf5 {[%clk 0:00:20.6]} 56. Bf7 {[%clk 0:00:12.9]} 56...
Bc2 {[%clk 0:00:18.4]} 57. Bd5 {[%clk 0:00:11.9]} 57... Bb3 {[%clk 0:00:17.3]}
58. Bc6 {[%clk 0:00:09.7]} 58... Kc5 {[%clk 0:00:16.3]} 59. Be8 {[%clk
0:00:09.1]} 59... Bc2 {[%clk 0:00:14.5]} 60. Bf7 {[%clk 0:00:09]} 60... Kb4
{[%clk 0:00:13.9]} 61. Be8 {[%clk 0:00:09.5]} 61... Bf5 {[%clk 0:00:12.4]} 62.
Bf7 {[%clk 0:00:09.2]} 62... Bd7 {[%clk 0:00:12.2]} 63. Bd5 {[%clk 0:00:08.8]}
63... Kc5 {[%clk 0:00:11.4]} 64. Bf7 {[%clk 0:00:08.5]} 64... Bc6 {[%clk
0:00:12]} 65. Bg6 {[%clk 0:00:04.6]} 65... Kb4 {[%clk 0:00:11.8]} 66. Bf7 {[%clk
0:00:04.9]} 66... Bb7 {[%clk 0:00:11.1]} 67. Be6 {[%clk 0:00:04.4]} 67... Bc6
{[%clk 0:00:10.9]} 68. Bf7 {[%clk 0:00:04.7]} 68... Bb5 {[%clk 0:00:10.6]} 69.
Be6 {[%clk 0:00:04]} 69... Bc4 {[%clk 0:00:10.7]} 70. Bf5 {[%clk 0:00:03.7]}
70... Kb3 {[%clk 0:00:10.8]} 71. Ke4 {[%clk 0:00:04.1]} 71... Kxb2 {[%clk
0:00:11.3]} 72. Kxe5 {[%clk 0:00:04.7]} 72... a3 {[%clk 0:00:11.8]} 73. Kd4
{[%clk 0:00:03]} 73... a2 {[%clk 0:00:11.9]} 74. Kxc4 {[%clk 0:00:02.7]} 74...
a1=Q {[%clk 0:00:12.3]} 75. Kd5 {[%clk 0:00:03.4]} 75... Qc1 {[%clk 0:00:12.1]}
76. Ke6 {[%clk 0:00:03.8]} 76... Qe3+ {[%clk 0:00:12.3]} 77. Kf6 {[%clk
0:00:04.6]} 77... Kc3 {[%clk 0:00:13]} 78. Kg6 {[%clk 0:00:05.1]} 78... Kd4
{[%clk 0:00:13.7]} 79. Bb1 {[%clk 0:00:05.7]} 79... Ke5 {[%clk 0:00:14]} 80. Kf7
{[%clk 0:00:05.2]} 80... Qg5 {[%clk 0:00:14]} 81. Bg6 {[%clk 0:00:05.4]} 81...
Qf6+ {[%clk 0:00:13.9]} 82. Ke8 {[%clk 0:00:04.4]} 82... Qxg6+ {[%clk
0:00:14.1]} 83. Kd8 {[%clk 0:00:05.3]} 83... Qf7 {[%clk 0:00:13.8]} 84. Kc8
{[%clk 0:00:06.2]} 84... Kd6 {[%clk 0:00:14.3]} 85. Kb8 {[%clk 0:00:07.1]} 85...
Kc6 {[%clk 0:00:14.8]} 86. Ka8 {[%clk 0:00:07.5]} 86... Qb7# {[%clk 0:00:15.1]}
0-1